bitfinex/quotes_BTCUSD_20251021
["timestamp","ask_amount","ask_price","bid_price","bid_amount"]
[1761058549139,1e-08,111750.0,111740.0,4.33488086]
[1761058549367,1.01207797,111780.0,111770.0,3.51893889]
[1761058549577,0.33759201,111780.0,111770.0,4.58206636]
[1761058549778,0.25254973,111780.0,111770.0,4.58206636]
[1761058549984,0.05173178,111780.0,111770.0,4.61029351]
[1761058550234,1e-08,111790.0,111780.0,4.13892287]
[1761058550462,0.00028,111830.0,111820.0,0.17885888]
[1761058550635,0.00028,111830.0,111820.0,4.37564735]
[1761058550836,0.00028,111830.0,111820.0,4.40385206]
[1761058551039,0.00028,111830.0,111820.0,4.41385205]
[1761058551301,0.00028,111830.0,111820.0,3.6368826]
[1761058551423,0.02631053,111880.0,111840.0,0.18775917]
[1761058551628,0.02631053,111880.0,111850.0,0.12632]
[1761058551629,0.17879363,111870.0,111850.0,0.12632]
[1761058551836,0.18775885,111850.0,111830.0,3.0]
[1761058552044,0.18775885,111850.0,111840.0,0.08981901]
[1761058552501,0.17879492,111860.0,111840.0,0.08981901]
[1761058552661,0.19406364,111850.0,111840.0,0.08981901]
[1761058552861,0.66699333,111850.0,111840.0,0.08981901]
[1761058553046,0.00470497,111850.0,111820.0,0.08628645]
[1761058553250,0.1788114,111850.0,111830.0,0.08981901]
[1761058553452,0.19770459,111880.0,111850.0,3.0]
[1761058553453,0.17876368,111880.0,111850.0,3.0]
[1761058553734,0.17876368,111880.0,111870.0,2.995]
[1761058553735,0.19613628,111880.0,111870.0,2.995]
[1761058553874,0.19613628,111880.0,111860.0,0.08981901]
[1761058553875,0.17877893,111870.0,111860.0,0.08981901]
[1761058554124,0.17877893,111870.0,111810.0,0.18781513]
[1761058554125,0.18775391,111860.0,111810.0,0.18781513]
[1761058554314,0.17881699,111850.0,111830.0,3.0]
[1761058554679,0.17882754,111840.0,111830.0,0.08981901]
[1761058554966,0.20514127,111840.0,111830.0,0.00048645]
[1761058555167,0.18775753,111850.0,111830.0,0.00048645]
[1761058555394,0.17882689,111840.0,111830.0,0.00048645]
[1761058555597,0.19619928,111840.0,111830.0,0.00048645]
[1761058556226,0.01737239,111840.0,111830.0,0.09030546]
[1761058556431,0.1977539,111860.0,111840.0,3.0]
[1761058556432,0.01737239,111850.0,111840.0,3.0]
[1761058556653,0.1266,111860.0,111840.0,3.08981901]
[1761058556856,0.19618329,111850.0,111840.0,0.08981901]
[1761058557293,0.19618329,111850.0,111830.0,0.00048645]
[1761058557508,0.01737239,111850.0,111840.0,0.08981901]
[1761058557718,0.18774748,111870.0,111840.0,0.08981901]
[1761058557719,0.19542526,111860.0,111840.0,0.08981901]
[1761058557947,0.6559722,111870.0,111840.0,0.08981901]
[1761058557948,0.31474748,111870.0,111840.0,0.08981901]
[1761058558167,0.19330929,111860.0,111840.0,0.08981901]
[1761058558378,0.19330929,111860.0,111830.0,0.00048645]
[1761058558379,0.17882689,111840.0,111830.0,0.00048645]
[1761058558584,0.17882689,111840.0,111830.0,0.09030546]
[1761058558800,0.19619928,111840.0,111830.0,0.00048645]
[1761058559028,0.664424,111840.0,111830.0,0.00048645]
[1761058559246,0.73687062,111840.0,111830.0,0.00048645]
[1761058559455,1.03626844,111840.0,111830.0,1e-08]
[1761058559663,2.16673065,111840.0,111830.0,1e-08]
[1761058559879,3.10318009,111840.0,111830.0,1e-08]
[1761058560091,2.16673065,111840.0,111830.0,1e-08]
[1761058560307,2.67189636,111840.0,111830.0,1e-08]
[1761058560542,1.89808475,111840.0,111830.0,1e-08]
[1761058560766,2.02480475,111840.0,111830.0,0.09981901]
[1761058560984,1.89808475,111840.0,111830.0,0.09981901]
[1761058561195,1.89808475,111840.0,111830.0,0.28661791]
[1761058561631,1.89808475,111840.0,111830.0,0.75484263]
[1761058561872,1.89540235,111840.0,111830.0,3.88156263]
[1761058562082,1.89540235,111840.0,111830.0,4.22156263]
[1761058562605,1.89540235,111840.0,111830.0,3.23449503]
[1761058562814,2.07422924,111840.0,111830.0,0.09777504]
[1761058563028,2.07422924,111840.0,111830.0,0.00795603]
[1761058563251,2.07422924,111840.0,111830.0,0.0079855]
[1761058563252,2.54245396,111840.0,111830.0,0.0079855]
[1761058563479,2.66909396,111840.0,111830.0,1e-08]
[1761058563948,1.89977164,111840.0,111830.0,0.276648]
[1761058564198,1.89394859,111840.0,111830.0,3.76339271]
[1761058564410,1.88521524,111840.0,111830.0,3.58454983]
[1761058564620,1.88521524,111840.0,111830.0,3.75540661]
[1761058564833,1.88521524,111840.0,111830.0,4.56363133]
[1761058565041,1.88521524,111840.0,111830.0,4.57161399]
[1761058565244,1.88521524,111840.0,111830.0,4.10338927]
[1761058565463,1.88521524,111840.0,111830.0,3.63516455]
[1761058565690,1.88521524,111840.0,111830.0,4.11138101]
[1761058567627,0.18957164,111890.0,111880.0,4.70977771]
[1761058567837,0.19125041,111890.0,111880.0,3.566779]
[1761058568062,0.19125041,111890.0,111880.0,0.23476679]
[1761058568301,0.36999739,111890.0,111880.0,0.10780679]
[1761058568529,0.36999739,111890.0,111880.0,0.10829363]
[1761058568746,0.83822211,111890.0,111880.0,0.09829364]
[1761058568973,0.83822211,111890.0,111880.0,0.00848033]
[1761058569214,0.00894134,111840.0,111780.0,0.28445911]
[1761058569426,0.1788872,111810.0,111800.0,0.00999999]
[1761058569694,0.1788872,111810.0,111800.0,0.12381828]
[1761058569907,0.1788872,111810.0,111800.0,0.10781876]
[1761058570333,0.17887487,111810.0,111800.0,0.10781876]
[1761058570536,0.19624726,111810.0,111800.0,0.10781876]
[1761058570755,0.28606627,111810.0,111800.0,1.88799976]
[1761058570991,0.17889087,111800.0,111790.0,2.52959999]
[1761058571234,0.17889087,111800.0,111790.0,2.62743193]
[1761058571516,0.00893974,111860.0,111830.0,0.00999999]
[1761058571755,0.18781062,111870.0,111840.0,2.619419]
[1761058571756,0.1788109,111850.0,111840.0,2.619419]
[1761058571961,0.3064909,111850.0,111840.0,2.62743193]
[1761058572200,0.1788109,111850.0,111840.0,2.62743193]
[1761058572418,0.36837229,111890.0,111870.0,0.00999999]
[1761058572419,0.18957164,111890.0,111870.0,0.00999999]
[1761058572637,0.18957164,111890.0,111880.0,2.52959999]
[1761058572850,0.49631862,111890.0,111880.0,2.60941901]
[1761058573052,0.49631862,111890.0,111880.0,2.619419]
[1761058573688,0.36831862,111890.0,111880.0,2.5196]
[1761058573892,0.49631862,111890.0,111880.0,2.5196]
[1761058574101,0.58613763,111890.0,111880.0,2.5196]
[1761058574304,0.49631862,111890.0,111880.0,2.5196]
[1761058575225,0.36831862,111890.0,111880.0,2.60941901]
[1761058575468,0.49615862,111890.0,111880.0,2.5196]
[1761058575688,0.49615862,111890.0,111880.0,2.51954435]
[1761058575689,0.49783739,111890.0,111880.0,2.51954435]
[1761058576581,0.49783739,111890.0,111880.0,2.61936335]
[1761058576582,0.19125041,111890.0,111880.0,2.61936335]
[1761058576797,0.19125041,111890.0,111880.0,2.6274145]
[1761058577010,0.10056546,111900.0,111890.0,2.33829458]
[1761058577243,0.10056546,111900.0,111890.0,2.43616021]
[1761058577671,0.1009011,111900.0,111890.0,2.43116021]
[1761058577884,0.1009011,111900.0,111890.0,2.42311359]
[1761058578308,0.29700449,111900.0,111890.0,2.32329459]
[1761058578525,0.4077521,111900.0,111890.0,2.4131136]
[1761058578874,0.2796321,111900.0,111890.0,2.4131136]
[1761058579084,0.1009011,111900.0,111890.0,2.42311359]
[1761058579514,0.2289411,111900.0,111890.0,2.42311359]
[1761058580387,0.4076721,111900.0,111890.0,2.42311359]
[1761058580576,0.4076721,111900.0,111890.0,2.4131136]
[1761058580772,0.4076721,111900.0,111890.0,2.32329459]
[1761058580773,0.46631091,111900.0,111890.0,2.32329459]
[1761058581029,0.17874698,111890.0,111880.0,2.32329459]
[1761058581221,1.0431543,111900.0,111890.0,2.32329459]
[1761058581222,0.27963233,111900.0,111890.0,2.32329459]
[1761058581395,0.40747233,111900.0,111890.0,2.32329459]
[1761058581855,0.85647572,111900.0,111890.0,1.7236]
[1761058582101,0.17874698,111890.0,111880.0,2.32329459]
[1761058582552,0.75559037,111890.0,111880.0,2.32329459]
[1761058582767,0.8672794,111890.0,111880.0,2.32329459]
[1761058582970,0.18876294,111880.0,111870.0,2.32378233]
[1761058583169,0.17882689,111840.0,111820.0,0.00999999]
[1761058583391,0.76459483,111850.0,111830.0,0.08981901]
[1761058583526,0.76459483,111850.0,111830.0,0.11995045]
[1761058583527,0.30670727,111840.0,111830.0,0.11995045]
[1761058583742,0.30670727,111840.0,111830.0,2.44324545]
[1761058583944,0.0910663,111850.0,111840.0,2.323295]
[1761058584145,0.13353429,111850.0,111840.0,2.37029405]
[1761058584343,0.18454519,111850.0,111840.0,2.38574445]
[1761058584622,0.92552268,111850.0,111840.0,2.36253721]
[1761058584841,0.88345429,111850.0,111840.0,2.36253721]
[1761058585133,0.88345429,111850.0,111840.0,2.33939325]
[1761058585705,0.9732733,111850.0,111840.0,2.33939325]
[1761058586141,0.51884288,111830.0,111820.0,1e-08]
[1761058586343,0.17887487,111810.0,111800.0,8.49553]
[1761058586544,0.39682345,111810.0,111800.0,8.49553]
[1761058586792,0.30700444,111810.0,111800.0,10.360223]
[1761058586926,0.88384783,111810.0,111800.0,10.360223]
[1761058587122,0.30700444,111810.0,111800.0,10.360223]
[1761058587326,0.17936444,111810.0,111800.0,10.37629225]
[1761058587533,0.18509873,111810.0,111800.0,10.37629225]
[1761058587961,0.18509873,111810.0,111800.0,8.88076225]
[1761058587962,0.76194212,111810.0,111800.0,8.88076225]
[1761058588188,0.89518394,111810.0,111800.0,8.864693]
[1761058588432,0.9413662,111810.0,111800.0,7.0]
[1761058588816,0.85602682,111810.0,111800.0,7.0]
[1761058589227,0.39666345,111810.0,111800.0,7.0]
[1761058589590,0.39666345,111810.0,111800.0,8.412225]
[1761058590416,0.39666345,111810.0,111800.0,8.42832074]
[1761058590417,0.30684444,111810.0,111800.0,8.42832074]
[1761058590617,0.17936444,111810.0,111800.0,8.42832074]
[1761058590870,0.18509873,111810.0,111800.0,8.42832074]
[1761058591615,0.22149583,111810.0,111800.0,8.42832074]
[1761058591813,0.21576154,111810.0,111800.0,8.42832074]
[1761058592017,0.17936444,111810.0,111800.0,8.42865682]
[1761058592237,0.17936444,111810.0,111800.0,8.51847583]
[1761058592238,0.18509873,111810.0,111800.0,8.51847583]
[1761058592469,0.00622386,111810.0,111800.0,8.66897979]
[1761058592684,0.18509873,111810.0,111800.0,8.57916078]
[1761058592893,0.18509873,111810.0,111800.0,8.42865682]
[1761058593505,0.00048957,111810.0,111800.0,8.68648668]
[1761058593733,0.00048957,111810.0,111800.0,8.86537755]
[1761058593951,0.00048957,111810.0,111800.0,8.88087789]
[1761058594172,0.00893814,111880.0,111840.0,0.00894134]
[1761058594395,0.17877907,111870.0,111860.0,1.412225]
[1761058594604,0.99189319,111870.0,111860.0,1.412225]
[1761058594817,0.99189319,111870.0,111850.0,0.00999999]
[1761058594818,0.17879492,111860.0,111850.0,1.412225]
[1761058595062,0.17879492,111860.0,111850.0,1.42827814]
[1761058595294,0.30647492,111860.0,111850.0,1.412225]
[1761058596406,0.17879492,111860.0,111850.0,1.42825502]
[1761058596607,0.31208921,111860.0,111850.0,1.42825502]
[1761058596825,0.30635492,111860.0,111850.0,1.42825502]
[1761058597038,0.30635492,111860.0,111850.0,1.412225]
[1761058597524,0.30621948,111870.0,111860.0,1.412225]
[1761058597726,0.17877948,111870.0,111860.0,1.42825079]
[1761058597899,0.31199377,111870.0,111860.0,1.42825079]
[1761058598099,0.18773067,111880.0,111860.0,1.5180698]
[1761058598328,0.30621893,111870.0,111860.0,1.5180698]
[1761058598528,0.17877893,111870.0,111860.0,1.5180698]
[1761058598667,0.31187322,111870.0,111860.0,1.5180698]
[1761058598883,0.30613893,111870.0,111860.0,1.5180698]
[1761058599070,0.35552589,111870.0,111860.0,1.42825079]
[1761058599273,0.35552589,111870.0,111850.0,1.412225]
[1761058599633,0.00306248,111890.0,111860.0,1.56070994]
[1761058599835,0.00306248,111890.0,111880.0,1.4164907]
[1761058600015,0.00306248,111890.0,111880.0,1.56022353]
[1761058600427,0.00306248,111890.0,111880.0,1.73898649]
[1761058600867,0.18180946,111890.0,111880.0,1.51232255]
[1761058601084,0.18180946,111890.0,111880.0,1.40663613]
[1761058601085,0.91453034,111890.0,111880.0,1.40663613]
[1761058601258,0.30944946,111890.0,111880.0,1.40663613]
[1761058601508,0.00306248,111890.0,111880.0,1.49645514]
[1761058601686,0.18180946,111890.0,111880.0,1.5224569]
[1761058601838,0.00038128,111890.0,111880.0,1.5224569]
[1761058602455,0.00038128,111890.0,111880.0,1.5234569]
[1761058602670,0.17912826,111890.0,111880.0,1.5234569]
[1761058602876,0.17912826,111890.0,111880.0,1.40663613]
[1761058603076,0.30684826,111890.0,111880.0,1.40663613]
[1761058603317,0.30684826,111890.0,111880.0,1.40863613]
[1761058603531,0.30684826,111890.0,111880.0,1.40663613]
[1761058603952,0.30684826,111890.0,111880.0,1.40763613]
[1761058605038,0.30684826,111890.0,111880.0,0.00114542]
[1761058605039,0.45528266,111890.0,111880.0,0.00114542]
[1761058605207,0.45528266,111890.0,111880.0,0.00014542]
[1761058605402,0.45528266,111890.0,111880.0,0.00114542]
[1761058605809,0.30672826,111890.0,111880.0,0.00014542]
[1761058606226,0.00038128,111890.0,111880.0,0.08996443]
[1761058606448,0.00038128,111890.0,111880.0,1.14076942]
[1761058606661,0.17912826,111890.0,111880.0,1.15676121]
[1761058606879,0.00038128,111890.0,111880.0,1.15676121]
[1761058607086,0.00038128,111890.0,111880.0,1.33552417]
[1761058607289,0.00038128,111890.0,111880.0,1.15676121]
[1761058607770,0.00038128,111890.0,111880.0,2.25236756]
[1761058607992,0.51617887,111930.0,111920.0,0.00999999]
[1761058607993,0.5076741,111930.0,111920.0,0.00999999]
[1761058608194,0.5076741,111930.0,111920.0,3.37410919]
[1761058608411,0.5076741,111930.0,111920.0,3.37223108]
[1761058608614,0.01462282,111940.0,111930.0,0.60348597]
[1761058608811,0.01462282,111940.0,111930.0,2.73559877]
[1761058609386,0.015113,111940.0,111930.0,2.55691567]
[1761058610027,0.015113,111940.0,111930.0,2.68479567]
[1761058610244,0.1,111950.0,111930.0,2.68479567]
[1761058610460,0.58570639,111970.0,111960.0,2.24995661]
[1761058610661,0.55885786,111970.0,111960.0,3.93231179]
[1761058610865,0.14500933,111970.0,111960.0,3.23441179]
[1761058611076,0.1181608,111970.0,111960.0,2.98596404]
[1761058611321,0.0058339,112010.0,111960.0,2.86423081]
[1761058611322,9.65674739,112000.0,111960.0,2.86423081]
[1761058611532,9.62989886,112000.0,111990.0,2.72983404]
[1761058611744,9.60305033,112000.0,111990.0,3.19622583]
[1761058611956,9.17199298,112000.0,111990.0,3.22494171]
[1761058612167,9.14514445,112000.0,111990.0,3.25016964]
[1761058612376,6.95275815,112000.0,111990.0,3.25016964]
[1761058612587,6.92592932,112000.0,111990.0,3.25016964]
[1761058612792,0.13630575,112090.0,112080.0,0.00999999]
[1761058613004,0.13630575,112090.0,112080.0,0.099819]
[1761058613214,0.00208,112100.0,112090.0,3.0095761]
[1761058613420,0.00208,112100.0,112090.0,0.00999999]
[1761058613847,0.00208,112100.0,112090.0,0.099819]
[1761058614047,0.0025711,112100.0,112090.0,0.0997513]
[1761058614263,0.0025711,112100.0,112090.0,0.08981901]
[1761058614473,0.18098323,112100.0,112090.0,0.0997513]
[1761058614889,0.18098323,112100.0,112090.0,0.08981901]
[1761058615074,0.18739285,112070.0,112060.0,0.00993229]
[1761058615340,0.31791285,112070.0,112060.0,0.0997513]
[1761058615550,0.17845989,112070.0,112060.0,0.0997513]
[1761058616212,0.17849174,112050.0,112040.0,0.00993229]
[1761058616445,0.17849174,112050.0,112030.0,3.00993229]
[1761058616446,0.17850767,112040.0,112030.0,3.00993229]
[1761058616657,0.13044,112040.0,112030.0,0.00993229]
[1761058616860,0.30902767,112040.0,112030.0,0.00993229]
[1761058617065,0.30902767,112040.0,112030.0,0.0997513]
[1761058617476,0.30902767,112040.0,112030.0,0.09989672]
[1761058617685,0.30898767,112040.0,112030.0,0.09989672]
[1761058617890,0.17850767,112040.0,112030.0,0.09989672]
[1761058618122,0.30890767,112040.0,112030.0,0.08996443]
[1761058618348,0.30890767,112040.0,112030.0,0.00014542]
[1761058618762,0.30878767,112040.0,112030.0,0.00014542]
[1761058618984,0.65878765,112040.0,112030.0,1e-08]
[1761058619198,1.30143919,112040.0,112030.0,1e-08]
[1761058619399,0.77478894,112040.0,112030.0,1e-08]
[1761058619607,0.63450896,112040.0,112030.0,1e-08]
[1761058619807,0.17858737,111990.0,111980.0,0.00993229]
[1761058620022,0.19659264,112000.0,111980.0,0.09989678]
[1761058620249,0.01802062,112000.0,111990.0,3.40845867]
[1761058620455,0.01802062,112000.0,111990.0,3.74845867]
[1761058620834,0.01802062,112000.0,111990.0,4.08415503]
[1761058621068,0.18738548,112070.0,112060.0,0.00993229]
[1761058621270,0.19629989,112070.0,112060.0,0.0997513]
[1761058621666,0.01784,112070.0,112060.0,0.0997513]
[1761058621872,0.193623,112070.0,112060.0,0.0997513]
[1761058622040,0.18742228,112080.0,112070.0,0.00993229]
[1761058622245,0.31835317,112080.0,112070.0,0.11759728]
[1761058622450,0.31835317,112080.0,112070.0,0.0997513]
[1761058622862,0.00049089,112080.0,112070.0,3.27821119]
[1761058623058,0.00049089,112080.0,112070.0,3.0997513]
[1761058623263,0.00049089,112080.0,112070.0,3.27821119]
[1761058623429,0.00049089,112080.0,112070.0,3.30171238]
[1761058623632,0.00049089,112080.0,112070.0,3.3275725]
[1761058624066,0.00049089,112080.0,112070.0,3.6675725]
[1761058624477,0.00049089,112080.0,112070.0,3.30407131]
[1761058624692,0.00049089,112080.0,112070.0,3.0997513]
[1761058624907,0.00049089,112080.0,112070.0,3.27821119]
[1761058625243,0.00049089,112080.0,112070.0,3.0997513]
[1761058625453,0.00049089,112080.0,112070.0,3.12462763]
[1761058625665,0.00551663,112080.0,112070.0,3.27821119]
[1761058625915,0.00551663,112080.0,112070.0,3.61821119]
[1761058626121,0.00551663,112080.0,112070.0,3.12404217]
[1761058626592,0.00551663,112080.0,112070.0,0.0997513]
[1761058626812,0.00551663,112080.0,112070.0,3.29196882]
[1761058627029,0.00551663,112080.0,112070.0,3.27921119]
[1761058627680,0.00551663,112080.0,112070.0,3.61921119]
[1761058629305,0.00208,112100.0,112090.0,0.19836033]
[1761058629554,0.00208,112100.0,112090.0,3.40912482]
[1761058630192,0.00208,112100.0,112090.0,3.27832482]
[1761058630429,0.00208,112100.0,112090.0,3.40900482]
[1761058630623,0.00208,112100.0,112090.0,3.43344978]
[1761058630832,0.00208,112100.0,112090.0,4.04444978]
[1761058631036,0.00208,112100.0,112090.0,3.40007253]
[1761058631230,0.00208,112100.0,112090.0,3.41000482]
[1761058631848,0.00208,112100.0,112090.0,3.76000482]
[1761058632031,0.00208,112100.0,112090.0,3.74916039]
[1761058632239,0.00208,112100.0,112090.0,3.26939253]
[1761058632497,0.00208,112100.0,112090.0,3.23149678]
[1761058632632,0.00208,112100.0,112090.0,3.23049678]
[1761058632979,0.00208,112100.0,112090.0,3.41192482]
[1761058633136,0.00208,112100.0,112090.0,3.09989678]
[1761058633343,0.00208,112100.0,112090.0,0.09989678]
[1761058633542,0.001814,112100.0,112090.0,0.10289678]
[1761058633745,0.001814,112100.0,112090.0,0.09989678]
[1761058633949,0.001814,112100.0,112090.0,3.09989678]
[1761058634157,0.001814,112100.0,112090.0,0.10189678]
[1761058634671,0.001814,112100.0,112090.0,3.28032482]
[1761058634874,0.001814,112100.0,112090.0,3.41060482]
[1761058635091,0.00248354,112100.0,112090.0,3.41060482]
[1761058635304,0.00248354,112100.0,112090.0,3.28032482]
[1761058635688,0.00248354,112100.0,112090.0,3.27832482]
[1761058636105,0.00248354,112100.0,112090.0,3.10189678]
[1761058636442,0.00248354,112100.0,112090.0,0.09989678]
[1761058636880,0.00248354,112100.0,112090.0,0.11973958]
[1761058637091,0.00248354,112100.0,112090.0,0.10189678]
[1761058637303,1e-08,112100.0,112090.0,3.65398729]
[1761058637515,1e-08,112100.0,112090.0,3.8115961]
[1761058637723,1e-08,112100.0,112090.0,3.6815561]
[1761058637906,1e-08,112100.0,112090.0,3.42622449]
[1761058638176,1e-08,112100.0,112090.0,3.42422449]
[1761058638993,1e-08,112100.0,112090.0,3.42416743]
[1761058639204,1e-08,112110.0,112100.0,4.04499467]
[1761058639411,1e-08,112110.0,112100.0,4.20635636]
[1761058639622,1e-08,112110.0,112100.0,4.2221951]
[1761058639797,1e-08,112110.0,112100.0,3.6439831]
[1761058640159,1e-08,112110.0,112100.0,3.69563406]
[1761058640567,0.00192629,112140.0,112110.0,0.19724831]
[1761058640799,0.0008339,112160.0,112150.0,3.18826488]
[1761058640970,4.524e-05,112190.0,112170.0,0.17828748]
[1761058641196,4.524e-05,112190.0,112180.0,3.40847619]
[1761058641358,4.524e-05,112190.0,112180.0,3.11566018]
[1761058641788,0.15948692,112230.0,112200.0,0.0460373]
[1761058642018,0.15948692,112230.0,112220.0,0.0460373]
[1761058642019,0.29870781,112230.0,112220.0,0.0460373]
[1761058642217,0.00891106,112220.0,112190.0,3.0460373]
[1761058642420,0.17823723,112210.0,112200.0,0.13585631]
[1761058642710,0.00891345,112190.0,112160.0,0.02581069]
[1761058642887,0.00891345,112190.0,112110.0,1.0]
[1761058642888,0.1783803,112120.0,112110.0,1.0]
[1761058643104,0.1783803,112120.0,112110.0,1.1567]
[1761058643105,0.28346063,112120.0,112110.0,1.1567]
[1761058643303,1.09364341,112120.0,112110.0,1.1567]
[1761058643568,0.01999997,112120.0,112110.0,1.0]
[1761058643804,0.00999999,112120.0,112110.0,3.82737521]
[1761058644017,0.18724941,112150.0,112120.0,2.648979]
[1761058644230,0.00891583,112160.0,112120.0,2.781499]
[1761058644465,0.18721675,112170.0,112140.0,2.648979]
[1761058644684,0.17831669,112160.0,112150.0,0.04854446]
[1761058644896,0.187276,112140.0,112120.0,2.648979]
[1761058645109,0.17836439,112130.0,112110.0,1.0]
[1761058645326,0.18727022,112150.0,112120.0,0.01783803]
[1761058645578,0.17837468,112130.0,112120.0,2.648979]
[1761058645793,0.27708574,112140.0,112110.0,1.0]
[1761058645998,0.13625461,112140.0,112120.0,0.01798351]
[1761058646204,0.19721674,112170.0,112130.0,0.04840036]
[1761058646205,0.01999997,112170.0,112130.0,0.04840036]
[1761058646430,0.00891027,112230.0,112170.0,2.65789403]
[1761058646653,0.08981901,112210.0,112180.0,2.939359]
[1761058646862,0.08981901,112200.0,112190.0,0.0178269]
[1761058647082,0.08981901,112200.0,112190.0,2.8235059]
[1761058647306,0.08981901,112200.0,112190.0,2.648979]
[1761058647503,0.08981901,112200.0,112190.0,2.983948]
[1761058647722,0.09031051,112200.0,112190.0,0.1567]
[1761058647934,0.09031051,112200.0,112190.0,2.648979]
[1761058648140,0.09934156,112200.0,112190.0,2.971859]
[1761058648374,0.17829867,112180.0,112160.0,0.1567]
[1761058648581,0.32083907,112190.0,112160.0,2.79359]
[1761058648788,0.32083907,112190.0,112180.0,0.20532952]
[1761058649436,0.19829178,112210.0,112180.0,0.20532952]
[1761058649437,0.00999999,112210.0,112190.0,0.1567]
[1761058649645,0.18711968,112230.0,112210.0,2.66688997]
[1761058649857,0.25565374,112260.0,112210.0,2.66688997]
[1761058650064,0.17822135,112220.0,112210.0,0.02999997]
[1761058650278,0.31241045,112230.0,112210.0,2.64688999]
[1761058650499,0.17822135,112220.0,112210.0,0.02999997]
[1761058650700,0.40617289,112220.0,112200.0,0.01999998]
[1761058650912,0.18711794,112230.0,112210.0,2.66688997]
[1761058651123,0.17822135,112220.0,112210.0,0.099819]
[1761058651328,0.17822135,112220.0,112210.0,0.09181901]
[1761058651769,0.17822135,112220.0,112210.0,0.12181898]
[1761058652194,0.31226135,112220.0,112210.0,0.03199997]
[1761058652401,0.17822135,112220.0,112210.0,0.002]
[1761058652606,0.17822135,112220.0,112210.0,0.09181901]
[1761058652607,0.30722135,112220.0,112210.0,0.09181901]
[1761058652823,0.30722135,112220.0,112210.0,0.002]
[1761058653068,0.30722135,112220.0,112200.0,0.002]
[1761058653069,0.17823723,112210.0,112200.0,0.002]
[1761058653297,0.17823723,112210.0,112190.0,0.00014548]
[1761058653298,0.17825311,112200.0,112190.0,0.00014548]
[1761058653510,0.07748003,112260.0,112230.0,0.01999998]
[1761058653721,0.07748003,112260.0,112240.0,2.63563358]
[1761058653722,0.13496,112250.0,112240.0,2.63563358]
[1761058653953,0.06857214,112260.0,112250.0,0.00999999]
[1761058654185,0.24672998,112260.0,112250.0,2.75545298]
[1761058654424,0.24672998,112260.0,112250.0,2.66563397]
[1761058654425,0.06857214,112260.0,112250.0,2.66563397]
[1761058654656,0.06857214,112260.0,112250.0,2.75559846]
[1761058654885,0.19209784,112290.0,112250.0,2.75559846]
[1761058655097,0.3150066,112280.0,112270.0,0.02989624]
[1761058655302,0.18316143,112290.0,112280.0,2.635634]
[1761058655506,0.01330184,112290.0,112280.0,0.09971527]
[1761058655721,0.18315559,112290.0,112280.0,0.09971527]
[1761058655928,0.17812611,112280.0,112260.0,0.00989626]
[1761058656131,0.3289411,112290.0,112270.0,2.65563398]
[1761058656310,0.00504534,112290.0,112280.0,2.635634]
[1761058656509,0.00504534,112290.0,112280.0,0.02989624]
[1761058656719,0.01139456,112290.0,112280.0,2.84148335]
[1761058657043,0.01139456,112290.0,112280.0,2.66335724]
[1761058657259,0.01139456,112290.0,112280.0,2.75317625]
[1761058657454,0.18950481,112290.0,112280.0,0.08981901]
[1761058657630,0.18950481,112290.0,112280.0,0.08481901]
[1761058657995,0.56568709,112290.0,112280.0,0.08481901]
[1761058658218,0.52950481,112290.0,112280.0,0.08481901]
[1761058658655,0.18950481,112290.0,112280.0,0.08481901]
[1761058658859,0.32622481,112290.0,112280.0,0.08481901]
[1761058659207,0.17815784,112260.0,112250.0,0.00014548]
[1761058659417,0.81337235,112290.0,112250.0,0.00014548]
[1761058659622,0.81337235,112290.0,112230.0,0.5788914]
[1761058659623,0.17818959,112240.0,112230.0,0.5788914]
[1761058659857,0.31478959,112240.0,112230.0,0.33012604]
[1761058660069,0.83154357,112240.0,112230.0,0.17825593]
[1761058660274,0.83154357,112240.0,112230.0,1e-08]
[1761058660479,0.17818959,112240.0,112230.0,1e-08]
[1761058660664,0.31478959,112240.0,112230.0,1e-08]
[1761058661047,0.31678959,112240.0,112230.0,1e-08]
[1761058661456,0.51818959,112240.0,112230.0,1e-08]
[1761058661875,0.65403675,112240.0,112230.0,1e-08]
[1761058662081,0.17818959,112240.0,112230.0,1e-08]
[1761058662273,0.83135984,112240.0,112230.0,1e-08]
[1761058662518,0.86764585,112240.0,112230.0,1e-08]
[1761058662723,0.73302212,112240.0,112230.0,1e-08]
[1761058662877,0.002,112240.0,112230.0,0.08981902]
[1761058663078,0.002,112240.0,112230.0,3.23348834]
[1761058663305,0.3,112260.0,112250.0,3.00335724]
[1761058663515,0.3,112260.0,112250.0,3.00235724]
[1761058663516,0.56797685,112260.0,112250.0,3.00235724]
[1761058663748,0.56797685,112260.0,112250.0,3.00135724]
[1761058663922,0.38981901,112260.0,112250.0,3.00135724]
[1761058664123,0.4466153,112260.0,112250.0,3.00135724]
[1761058664456,0.4466153,112260.0,112250.0,7.98559039]
[1761058664665,0.38981901,112260.0,112250.0,7.98659039]
[1761058665007,0.38981901,112260.0,112250.0,7.935067]
[1761058665203,0.38981901,112260.0,112250.0,7.595067]
[1761058665458,0.38078397,112260.0,112250.0,7.77524071]
[1761058665680,0.38078397,112260.0,112250.0,7.937067]
[1761058666038,0.61483462,112260.0,112250.0,7.595067]
[1761058666228,0.61483462,112260.0,112250.0,7.599067]
[1761058666229,0.38078397,112260.0,112250.0,7.599067]
[1761058666555,0.38078397,112260.0,112250.0,7.597067]
[1761058667454,0.38078397,112260.0,112250.0,5.0]
[1761058667455,0.55894181,112260.0,112250.0,5.0]
[1761058667686,0.7051418,112260.0,112250.0,5.001]
[1761058667872,0.69522181,112260.0,112250.0,5.001]
[1761058668127,0.6054028,112260.0,112250.0,5.0]
[1761058668322,1.50823532,112260.0,112250.0,4.42989993]
[1761058668548,1.51815531,112260.0,112250.0,4.13248772]
[1761058668802,1.51815531,112260.0,112250.0,3.91172854]
[1761058668991,0.51530507,112260.0,112250.0,3.91172854]
[1761058669207,1.12185305,112260.0,112250.0,3.91172854]
[1761058669424,0.6052028,112260.0,112250.0,3.91172854]
[1761058669790,0.4691228,112260.0,112250.0,3.91072854]
[1761058670008,0.69590181,112260.0,112250.0,3.82090953]
[1761058670389,0.55994181,112260.0,112250.0,3.82090953]
[1761058670584,0.69590181,112260.0,112250.0,3.82090953]
[1761058670852,0.55994181,112260.0,112250.0,3.82090953]
[1761058671060,0.69582181,112260.0,112250.0,3.82090953]
[1761058671272,0.6059228,112260.0,112250.0,3.82090953]
[1761058671488,0.68432985,112260.0,112250.0,3.82090953]
[1761058671684,1.29079911,112260.0,112250.0,3.82090953]
[1761058672095,0.4701228,112260.0,112250.0,3.82090953]
[1761058672269,0.55994181,112260.0,112250.0,3.82090953]
[1761058672631,1.21227206,112260.0,112250.0,3.82090953]
[1761058672873,1.07659206,112260.0,112250.0,3.82090953]
[1761058673624,1.07659206,112260.0,112250.0,3.30922555]
[1761058673625,1.56227205,112260.0,112250.0,3.30922555]